bitfinex/quotes_ETHUSD_20250112
["timestamp","ask_amount","ask_price","bid_price","bid_amount"]
[1736641292365,1.139047,3287.1,3287.0,0.1696003]
[1736641292561,1.139047,3287.1,3286.5,0.7965]
[1736641292902,1.139047,3287.1,3287.0,0.1696003]
[1736641293088,1.139047,3287.1,3286.5,0.7965]
[1736641293297,0.55,3287.1,3286.5,0.7965]
[1736641293606,0.55,3287.1,3286.6,0.16988864]
[1736641296661,2.53788601,3286.8,3286.6,0.16988864]
[1736641296860,1.3745,3286.7,3286.6,0.16988864]
[1736641297063,1.3745,3286.7,3285.9,7.5003]
[1736641297314,1.3745,3286.7,3286.6,0.16992855]
[1736641297518,1.3745,3286.7,3285.9,7.5003]
[1736641298022,1.3745,3286.7,3286.0,0.17036119]
[1736641300128,0.55,3286.9,3286.1,2.92388]
[1736641300332,0.55,3286.9,3286.2,0.33985114]
[1736641300495,0.55,3286.9,3286.2,0.5100681]
[1736641300698,2.67967,3286.9,3286.2,0.17021696]
[1736641300894,0.55,3286.7,3286.2,0.17021696]
[1736641301208,0.7772,3286.6,3286.2,0.17021696]
[1736641301393,0.55,3286.5,3285.9,5.37]
[1736641301587,0.761,3286.4,3286.3,0.17035332]
[1736641301782,0.761,3286.4,3285.9,5.37]
[1736641301987,0.761,3286.4,3286.3,0.17035332]
[1736641302300,0.761,3286.4,3285.9,5.37]
[1736641302494,0.761,3286.4,3286.3,0.17035332]
[1736641303013,0.761,3286.4,3286.0,0.7937]
[1736641303217,0.761,3286.4,3286.3,0.17035332]
[1736641303384,0.761,3286.4,3286.0,0.7937]
[1736641303724,0.761,3286.4,3286.3,0.17035332]
[1736641304197,0.761,3286.4,3286.0,0.7937]
[1736641304398,0.761,3286.4,3286.3,0.17035332]
[1736641304585,0.761,3286.4,3286.0,0.7937]
[1736641304781,0.761,3286.4,3286.3,0.17035332]
[1736641304988,0.761,3286.4,3286.0,0.7937]
[1736641305218,0.761,3286.4,3286.3,0.17035332]
[1736641305527,0.761,3286.4,3286.0,0.7937]
[1736641306030,0.761,3286.4,3286.1,0.17049754]
[1736641310798,0.55,3286.3,3286.1,0.17049754]
[1736641310999,1.3612,3286.2,3285.6,0.7904]
[1736641311312,0.55,3286.1,3285.6,0.7904]
[1736641312809,0.55,3286.1,3285.7,0.1711853]
[1736641313738,0.55,3286.1,3285.5,5.37]
[1736641313941,0.55,3286.1,3285.8,0.17111317]
[1736641314139,0.55,3286.1,3285.5,5.37]
[1736641314658,0.55,3286.1,3285.6,0.17125743]
[1736641314858,0.55,3285.9,3285.6,0.17125743]
[1736641315177,0.55,3285.9,3285.3,0.7904]
[1736641315325,0.55,3285.9,3285.7,0.1711853]
[1736641315522,0.55,3285.9,3285.3,0.7904]
[1736641315984,0.55,3285.9,3285.4,0.17140172]
[1736641316179,0.55,3286.0,3285.4,2.30201172]
[1736641316325,0.211,3286.1,3285.6,6.1451]
[1736641316523,0.211,3286.1,3285.8,2.13037]
[1736641316934,0.211,3286.1,3285.9,0.17125406]
[1736641318785,0.212,3286.3,3285.9,0.17125406]
[1736641322637,0.212,3286.3,3285.6,8.27557]
[1736641322839,0.212,3286.3,3286.0,0.17125737]
[1736641323089,0.212,3286.3,3285.6,8.27557]
[1736641323398,0.212,3286.3,3285.7,2.13039]
[1736641323611,0.212,3286.3,3285.7,2.30186375]
[1736641324800,0.212,3286.3,3285.7,0.17147375]
[1736641325006,0.212,3286.3,3285.8,2.76202737]
[1736641325301,0.55,3286.4,3285.9,2.9575]
[1736641325603,0.55,3286.4,3285.8,0.2018321]
[1736641325931,0.55,3286.4,3286.0,0.17125737]
[1736641326235,0.55,3286.4,3286.1,0.17118525]
[1736641326416,0.55,3286.4,3285.8,0.03043048]
[1736641326734,0.55,3286.4,3286.2,0.17111314]
[1736641326889,0.55,3286.4,3285.8,2.16080048]
[1736641327230,0.55,3286.4,3285.7,0.8272]
[1736641327440,0.7526,3286.3,3285.9,0.17132949]
[1736641327738,0.55,3286.2,3285.5,2.13055]
[1736641327945,0.55,3286.2,3286.0,0.17125737]
[1736641328084,0.55,3286.0,3285.4,0.8272]
[1736641328442,0.55,3286.0,3285.2,5.37]
[1736641330692,0.55,3286.0,3285.2,7.53119633]
[1736641330892,0.55,3286.0,3285.3,2.13069]
[1736641331086,0.212,3286.1,3285.8,2.13035]
[1736641331393,0.212,3286.1,3286.0,0.8272]
[1736641333129,5.522,3286.6,3286.2,2.13009]
[1736641333569,5.522,3286.6,3286.0,0.8272]
[1736641333570,5.522,3286.6,3286.1,2.13017]
[1736641334066,0.55,3286.5,3286.0,0.8272]
[1736641334369,1.3181,3286.5,3286.0,0.8272]
[1736641334731,1.3181,3286.5,3285.8,0.7818]
[1736641334954,1.3181,3286.5,3285.5,3.33391932]
[1736641335156,3.44804,3286.5,3285.5,5.46442932]
[1736641335369,0.55,3286.3,3285.5,2.91231]
[1736641335728,0.55,3286.1,3285.4,2.55211932]
[1736641335924,0.7681,3286.0,3285.2,8.70391932]
[1736641336172,0.55,3285.9,3285.2,8.70391932]
[1736641336466,0.55,3285.7,3285.2,8.70391932]
[1736641336673,0.55,3285.7,3285.2,6.1518]
[1736641337261,0.55,3285.7,3285.3,2.13069]
[1736641338641,0.212,3285.8,3285.2,6.76698]
[1736641338856,0.7681,3286.3,3285.7,2.13039]
[1736641339082,0.212,3286.2,3285.7,2.13039]
[1736641339481,0.212,3286.2,3285.5,2.13051]
[1736641339870,0.212,3286.2,3285.4,0.7818]
[1736641339871,0.212,3286.2,3285.6,0.0304319]
[1736641340070,0.8239,3286.5,3285.7,0.7574]
[1736641340381,5.522,3286.6,3286.2,2.1301]
[1736641340579,0.212,3286.6,3286.3,2.13003]
[1736641341646,0.212,3286.6,3285.9,5.37]
[1736641341996,0.212,3286.6,3286.1,2.13017]
[1736641342357,0.212,3286.6,3286.2,0.17120633]
[1736641342759,0.8239,3286.8,3286.0,0.03042645]
[1736641342961,0.8239,3287.1,3286.4,0.7574]
[1736641343157,0.212,3287.0,3286.6,2.12985]
[1736641343356,2.53788601,3287.5,3286.7,2.30010222]
[1736641343357,0.212,3287.2,3286.7,2.30010222]
[1736641343574,0.212,3287.2,3286.8,2.12966]
[1736641343983,0.212,3287.2,3286.9,0.17013369]
[1736641344148,0.55,3287.1,3286.9,0.17013369]
[1736641344349,0.55,3287.1,3286.5,7.49987]
[1736641344783,0.55,3287.1,3286.6,0.17025235]
[1736641344986,0.839142,3287.1,3286.6,0.17025235]
[1736641347254,0.55,3287.1,3286.6,0.17025235]
[1736641348158,0.212,3287.2,3286.7,0.03042412]
[1736641348463,0.212,3287.2,3286.8,2.29976165]
[1736641348666,0.212,3287.2,3286.9,0.03042091]
[1736641348989,0.212,3287.2,3286.9,2.33002047]
[1736641349194,0.212,3287.2,3286.9,2.29959956]
[1736641349491,0.212,3287.2,3286.9,2.52955952]
[1736641349990,0.212,3287.2,3286.9,0.39992952]
[1736641352502,0.212,3287.2,3286.9,0.16996956]
[1736641352991,0.212,3287.2,3287.0,0.16989749]
[1736641353196,0.212,3287.2,3286.7,2.12977]
[1736641353404,0.212,3287.2,3286.8,0.17004165]
[1736641353591,0.212,3287.2,3286.7,2.12977]
[1736641353771,0.763,3287.3,3286.7,2.879747]
[1736641353957,0.763,3287.3,3286.8,0.17004165]
[1736641354157,0.763,3287.3,3286.7,2.879747]
[1736641354393,0.763,3287.3,3286.8,0.17004165]
[1736641354602,0.763,3287.3,3286.7,2.879747]
[1736641354763,0.763,3287.3,3286.8,0.17004165]
[1736641354959,0.763,3287.3,3286.7,0.749977]
[1736641355290,0.763,3287.3,3286.8,0.17004165]
[1736641355597,0.7705,3287.2,3286.6,2.12985]
[1736641355793,0.7705,3287.2,3286.9,0.16996956]
[1736641355997,0.7705,3287.2,3286.5,5.37]
[1736641355998,0.55,3287.1,3286.5,5.37]
[1736641356157,0.55,3287.1,3287.0,0.16989749]
[1736641356362,1.0121386,3287.1,3286.5,5.37]
[1736641356556,0.55,3287.1,3286.5,5.37]
[1736641356812,0.55,3287.1,3286.6,0.17003944]
[1736641358094,3.08788601,3286.9,3286.6,0.17003944]
[1736641358294,0.55,3286.7,3286.0,7.50023]
[1736641359102,0.55,3286.7,3286.1,0.03042804]
[1736641359477,0.55,3286.7,3286.0,7.50023]
[1736641362202,0.55,3286.7,3286.0,5.37]
[1736641362402,0.55,3286.5,3286.0,5.37]
[1736641362605,0.763,3286.5,3286.0,5.37]
[1736641363808,0.763,3286.5,3285.8,2.13035]
[1736641365971,0.763,3286.5,3285.7,5.37]
[1736641366208,0.55,3286.3,3285.7,5.37]
[1736641366986,0.55,3286.3,3285.7,7.50038]
[1736641368405,0.55,3286.3,3285.7,5.37]
[1736641368609,0.55,3286.3,3285.9,2.1303]
[1736641368791,0.55,3286.3,3285.9,2.88337302]
[1736641369698,0.55,3286.3,3285.9,0.75307302]
[1736641369899,0.55,3286.3,3285.7,7.50042]
[1736641370201,0.55,3286.3,3285.8,2.13035]
[1736641372226,0.55,3286.3,3285.7,5.37]
[1736641372528,0.55,3286.3,3285.9,0.17082366]
[1736641372726,0.55,3286.3,3285.8,0.17089579]
[1736641373027,0.55,3286.1,3285.9,0.17082366]
[1736641373229,0.55,3285.9,3285.5,5.37]
[1736641373798,0.8318,3285.8,3285.1,5.37]
[1736641373997,0.55,3285.5,3285.1,5.37]
[1736641374212,0.55,3285.3,3284.8,5.73140877]
[1736641374413,0.55,3285.3,3284.8,2.55211932]
[1736641374818,0.55,3285.3,3284.7,3.17928945]
[1736641375018,0.55,3285.3,3284.7,5.31034945]
[1736641375514,0.55,3285.3,3284.7,5.34079054]
[1736641378849,0.7632,3285.4,3284.9,2.13095]
[1736641379052,0.7632,3285.4,3285.0,0.24353329]
[1736641380143,0.55,3285.3,3284.8,2.13102]
[1736641380287,0.55,3285.3,3284.7,5.37]
[1736641380731,0.55,3285.3,3284.7,7.50105]
[1736641380932,0.55,3285.3,3284.8,0.03043998]
[1736641381647,0.55,3285.3,3284.7,7.50105]
[1736641382521,0.55,3285.3,3284.8,0.03043996]
[1736641382844,0.55,3285.3,3284.7,7.50105]
[1736641383939,0.55,3285.1,3284.7,5.37]
[1736641384367,0.55,3284.9,3284.7,5.37]
[1736641384523,0.763,3284.9,3284.3,2.13133]
[1736641385041,0.763,3284.9,3284.2,5.37]
[1736641385201,0.8053,3284.8,3284.2,5.37]
[1736641386640,0.8053,3284.5,3283.7,5.37]
[1736641386812,0.8053,3284.5,3283.8,0.03045066]
[1736641387540,0.8053,3284.5,3283.9,0.17342533]
[1736641387840,0.8053,3284.5,3283.9,2.30502533]
[1736641388242,2.53788601,3284.2,3283.9,0.17342533]
[1736641388420,0.8053,3284.0,3283.9,0.17342533]
[1736641388904,0.8053,3283.9,3283.5,1.875]
[1736641389110,0.8053,3283.7,3283.5,1.875]
[1736641391884,3.0,3284.4,3283.5,1.875]
[1736641392085,0.213,3283.8,3283.5,1.875]
[1736641392233,0.213,3283.9,3283.5,1.875]
[1736641393743,0.8053,3284.3,3283.7,2.13173]
[1736641393948,0.213,3284.2,3283.7,2.13173]
[1736641394565,0.763,3284.2,3283.5,1.875]
[1736641394769,0.91983,3284.2,3283.5,1.875]
[1736641395673,0.754,3284.1,3283.5,1.875]
[1736641396452,0.754,3284.1,3283.5,4.00686]
[1736641396962,0.754,3284.1,3283.5,1.875]
[1736641398373,0.55,3283.8,3283.5,1.875]
[1736641398577,0.754,3283.7,3283.5,1.875]
[1736641400882,0.214,3283.7,3283.5,1.875]
[1736641401097,3.0,3284.4,3283.7,2.13173]
[1736641401297,0.214,3284.0,3283.7,2.13173]
[1736641401464,0.214,3284.0,3283.7,2.532403]
[1736641402484,0.214,3284.0,3283.8,0.17473675]
[1736641402690,0.214,3284.0,3283.7,2.13173]
[1736641402893,0.214,3284.0,3283.9,0.17466454]
[1736641403205,0.214,3284.0,3283.7,2.13173]
[1736641403405,0.214,3284.0,3283.9,0.17466454]
[1736641403617,0.214,3284.0,3283.8,0.17473675]
[1736641403783,0.214,3284.1,3283.9,0.40531122]
[1736641403989,0.214,3284.1,3283.9,0.17466454]
[1736641404171,0.214,3284.1,3284.0,2.13152]
[1736641404509,0.214,3284.2,3284.0,2.30611233]
[1736641404732,0.8086,3284.6,3284.1,2.13142]
[1736641405042,0.214,3284.2,3284.1,2.93672716]
[1736641405193,0.214,3284.7,3284.4,2.13123]
[1736641405538,0.214,3284.7,3284.1,2.90628]
[1736641405539,0.8086,3284.6,3284.1,2.13143]
[1736641405875,0.214,3284.5,3284.1,2.13143]
[1736641407738,0.214,3284.5,3284.2,2.1314]
[1736641408688,1.0266,3284.6,3284.2,2.1314]
[1736641409738,1.0266,3284.6,3283.8,6.1448]
[1736641409938,0.8086,3284.4,3283.8,7.50165]
[1736641410528,0.8086,3284.4,3283.9,2.13157]
[1736641410747,0.8086,3284.4,3284.0,2.13148]
[1736641412229,0.8086,3284.4,3284.1,2.13147]
[1736641412459,0.218,3284.6,3284.4,2.13126]
[1736641413043,0.8086,3285.0,3284.2,2.16184963]
[1736641413242,0.218,3284.9,3284.3,0.21618496]
[1736641413472,0.218,3284.9,3284.4,0.0304428]
[1736641413673,0.218,3284.9,3284.3,0.21618496]
[1736641414179,3.0,3285.4,3284.5,0.7792]
[1736641414467,0.8267,3285.3,3284.6,0.32453074]
[1736641414632,1.0447,3285.3,3284.7,2.13109]
[1736641414831,1.0447,3285.3,3284.6,0.29409028]
[1736641415431,1.0447,3285.3,3284.8,2.13097]
[1736641416256,0.8267,3285.2,3284.2,2.91058]
[1736641416458,0.8267,3285.2,3284.4,2.13126]
[1736641416928,0.8267,3285.1,3284.4,2.13126]
[1736641417669,0.8267,3285.1,3284.5,0.17116937]
[1736641418079,0.8267,3285.1,3284.5,2.30232937]
[1736641418373,0.8267,3285.1,3284.5,0.17116937]
[1736641418873,0.8267,3285.1,3284.6,0.17115927]
[1736641419235,0.8267,3285.1,3284.7,0.17108709]
[1736641419569,0.8267,3285.1,3284.1,7.50144]
[1736641419877,0.8267,3285.1,3284.8,0.17099274]
[1736641420080,0.8267,3285.1,3284.4,2.13128]
[1736641420277,0.8267,3285.1,3284.5,0.17120928]
[1736641421677,0.8267,3285.1,3284.5,2.13121]
[1736641422045,0.8267,3285.1,3284.6,0.1711371]
[1736641425157,0.8267,3285.1,3284.6,2.3022871]
[1736641426088,0.8059,3285.4,3284.7,0.03044282]
[1736641426292,0.218,3285.2,3285.0,2.13089]
[1736641426588,0.218,3285.2,3285.1,0.17080729]
[1736641427409,0.218,3285.3,3285.1,0.17080729]
[1736641428310,2.53788601,3286.1,3285.1,0.40097702]
[1736641428619,0.218,3285.6,3285.2,2.13071]
[1736641429213,0.218,3285.6,3285.3,0.17042352]
[1736641431514,0.168,3285.6,3285.3,0.17042352]
[1736641431877,0.218,3285.6,3285.3,0.17042352]
[1736641432586,1.0239,3285.6,3285.3,0.17042352]
[1736641432790,1.0239,3285.6,3285.2,2.13071]
[1736641432991,1.0239,3285.6,3285.2,2.343781]
[1736641433416,1.0239,3285.6,3285.3,0.17033041]
[1736641435524,0.218,3285.6,3285.3,0.17033041]
[1736641435725,0.8231,3285.8,3285.3,0.17033041]
[1736641436034,0.218,3285.7,3285.3,0.94133041]
[1736641436322,0.218,3285.7,3285.3,1.26984155]
[1736641436823,0.218,3285.7,3285.3,3.40052155]
[1736641439730,0.218,3285.7,3285.3,0.17033041]
[1736641440250,0.218,3285.7,3285.1,2.88301]
[1736641440431,0.218,3285.7,3285.4,0.17004547]
[1736641440634,0.218,3285.7,3285.1,2.88301]
[1736641440839,0.218,3285.7,3285.5,0.16997333]
[1736641441016,0.7889296,3285.7,3284.9,7.50094]
[1736641441217,0.7889296,3285.7,3285.6,0.16990119]
[1736641441218,0.768,3285.7,3285.6,0.16990119]
[1736641441414,0.768,3285.7,3284.9,5.37]
[1736641441618,0.768,3285.7,3285.6,0.16990119]
[1736641441843,0.768,3285.7,3285.0,2.13087]
[1736641442046,0.768,3285.7,3285.6,0.16993665]
[1736641442047,0.218,3285.7,3285.6,0.16993665]
[1736641442235,0.218,3285.7,3285.3,0.7522]
[1736641442406,0.218,3285.7,3285.6,0.16993665]
[1736641442607,0.218,3285.7,3285.3,1.04354086]
[1736641442845,0.218,3285.7,3285.6,0.16996325]
[1736641443030,2.13005,3286.4,3285.6,0.16996325]
[1736641443031,2.89277,3286.6,3285.6,2.13049]
[1736641443231,0.55,3286.5,3285.6,3.05354582]
[1736641443431,0.218,3286.5,3285.8,2.13035]
[1736641443746,0.218,3286.5,3285.9,0.16968923]
[1736641444517,5.43077601,3286.4,3285.6,0.75309257]
[1736641444721,5.43077601,3286.4,3285.7,0.16968722]
[1736641445425,3.30078601,3286.4,3285.7,0.16968722]
[1736641447106,2.53788601,3286.1,3285.7,0.16968722]
[1736641447342,0.55,3285.8,3285.0,0.7522]
[1736641447543,0.7629,3285.9,3285.1,0.17006248]
[1736641447544,0.7629,3285.6,3285.1,0.17006248]
[1736641447945,0.7629,3285.6,3284.8,6.1222]
[1736641448112,0.7629,3285.6,3284.9,0.1702068]
[1736641452270,0.7629,3285.4,3284.9,0.1702068]
[1736641452912,0.7629,3285.1,3284.9,0.1702068]
[1736641453112,0.7629,3285.1,3284.3,2.13134]
[1736641453581,0.7629,3285.1,3284.4,2.3022189]
[1736641456879,0.7629,3285.1,3284.4,0.1709489]
[1736641457015,0.7853,3284.9,3284.4,0.1709489]
[1736641457210,0.218,3284.8,3284.2,2.1314]
[1736641457415,0.218,3284.8,3284.5,0.17108512]
[1736641457659,0.218,3284.8,3284.2,2.1314]
[1736641457856,0.218,3284.8,3284.6,0.17101294]
[1736641458043,0.218,3284.8,3284.2,2.1314]
[1736641458216,0.218,3284.8,3284.7,0.17094076]
[1736641458415,0.218,3284.8,3284.2,2.1314]
[1736641458612,0.218,3284.8,3284.2,0.21314]
[1736641458840,0.218,3284.8,3284.3,2.3025595]
[1736641459555,0.218,3284.8,3284.3,0.1712295]
[1736641459756,0.8124,3284.7,3283.9,5.37]
[1736641459956,0.8124,3284.7,3284.0,0.1714461]
[1736641460280,0.8124,3284.7,3284.0,2.3029761]
[1736641461646,0.8124,3284.7,3284.1,2.13148]
[1736641462172,0.8124,3284.7,3284.2,0.17130169]
[1736641462885,0.8124,3284.7,3284.2,2.13139]
[1736641463245,0.8124,3284.7,3284.3,0.17134037]
[1736641476993,0.8124,3284.7,3284.0,2.13153]
[1736641477192,0.8124,3284.7,3284.1,0.17183068]
[1736641477807,0.8124,3284.7,3284.1,2.30330068]
[1736641479830,0.8124,3284.7,3284.1,0.17183068]
[1736641480200,0.8124,3284.7,3283.9,7.50158]
[1736641480401,0.7523,3284.6,3284.0,0.17188958]
[1736641481109,0.7523,3284.4,3284.0,0.17188958]
[1736641481538,0.7523,3284.4,3283.6,2.13177]
[1736641482152,0.7523,3284.4,3283.7,0.17215057]
[1736641483456,0.7523,3284.2,3283.5,6.62]
[1736641483653,0.7523,3284.2,3283.8,0.17207835]
[1736641483921,0.7523,3284.2,3283.5,6.62]
[1736641484087,0.7523,3284.2,3283.9,0.17200614]
[1736641484289,0.7523,3284.2,3283.5,6.62]
[1736641484438,0.7523,3284.2,3284.0,0.17193393]
[1736641484632,0.7523,3284.2,3283.6,2.1318]
[1736641484832,0.7523,3284.2,3284.1,0.17186173]
[1736641485073,0.7523,3284.2,3283.6,2.1318]
[1736641485550,0.7523,3284.2,3283.7,0.17240344]
[1736641486748,0.7523,3284.2,3283.7,2.30411344]
[1736641487270,0.7523,3284.2,3283.7,0.17240344]
[1736641487881,0.7523,3284.2,3283.6,2.16220123]
[1736641488044,0.7523,3284.2,3283.8,0.17233122]
[1736641488246,0.7523,3284.8,3283.9,2.13159]
[1736641488446,0.22,3284.7,3284.1,2.13147]
[1736641488695,0.22,3284.7,3284.1,2.92567]
[1736641488871,0.22,3284.7,3284.2,0.17218878]
[1736641489641,0.7523,3284.8,3284.3,2.13135]
[1736641489863,0.22,3284.8,3284.4,0.03044694]
[1736641490069,0.22,3284.8,3284.4,2.33371721]
[1736641490342,0.22,3284.8,3284.5,0.17186574]
[1736641491395,0.7523,3284.7,3284.1,6.1642]
[1736641491592,0.7523,3284.7,3284.2,0.17198473]
[1736641494610,0.7523,3284.7,3284.2,2.33383003]
[1736641496300,0.22,3284.8,3284.4,0.7963]
[1736641496668,0.22,3284.8,3284.5,0.17151083]
[1736641497616,0.22,3284.8,3284.1,8.29775]
[1736641497796,0.22,3284.8,3284.2,0.17172297]
[1736641500378,0.7588,3284.7,3284.2,0.17172297]
[1736641501078,0.7588,3284.7,3284.3,0.03044696]
[1736641501273,0.22,3284.8,3284.3,2.13133]
[1736641501479,0.22,3284.8,3284.4,0.20111741]
[1736641502439,0.22,3284.8,3284.4,0.50952215]
[1736641502593,0.218,3284.7,3284.4,2.64079215]
[1736641502811,5.31,3286.2,3284.7,0.7516]
[1736641502993,5.64453112,3286.3,3284.7,0.7516]
[1736641502994,0.7588,3286.0,3285.0,2.13083]
[1736641503194,3.29668601,3286.0,3285.1,0.17013667]
[1736641503545,0.55,3285.8,3285.1,0.17013667]
[1736641504035,0.55,3285.6,3284.8,0.03043952]
[1736641504186,0.7588,3285.5,3285.2,0.17006451]
[1736641504386,0.7588,3285.5,3284.8,0.32175047]
[1736641504586,0.7588,3285.5,3284.9,0.170281]
[1736641505016,0.7588,3285.5,3284.7,0.7516]
[1736641505228,0.7588,3285.5,3284.8,0.17035316]
[1736641505387,1.1652686,3285.5,3284.8,0.17035316]
[1736641505581,0.7588,3285.4,3284.5,8.2528]
[1736641505826,0.7588,3285.4,3284.6,0.17049752]
[1736641507422,0.55,3285.3,3284.6,0.17049752]
[1736641507625,1.0675886,3285.2,3284.6,0.17049752]
[1736641508532,5.21873601,3285.1,3284.6,0.17049752]
[1736641508731,0.7588,3285.0,3284.6,0.17049752]
[1736641509055,0.7588,3284.8,3284.6,0.17049752]
[1736641510714,0.7588,3284.8,3284.2,0.03044545]
[1736641510917,0.7588,3284.8,3284.7,0.17012377]
[1736641511109,0.7588,3284.8,3284.3,0.7516]
[1736641511310,0.7588,3285.3,3284.4,0.03044547]
[1736641511512,0.7588,3285.3,3284.4,0.20081683]
[1736641511513,0.6296686,3285.2,3284.4,0.20081683]
[1736641511806,0.218,3285.1,3284.4,0.20081683]
[1736641512407,0.7588,3285.3,3284.5,0.7516]
[1736641512608,0.218,3285.2,3284.8,2.13099]
[1736641512810,0.218,3285.2,3284.9,2.3008596]
[1736641514636,0.218,3285.2,3285.0,0.7838]
[1736641514833,0.218,3285.2,3285.1,0.16962669]
[1736641515209,0.7588,3285.5,3285.1,0.16962669]
[1736641515551,0.218,3285.3,3285.1,0.16962669]
[1736641515718,0.7588,3285.5,3285.1,0.16962669]
[1736641515921,0.218,3285.4,3285.2,2.13075]
[1736641516121,0.8038,3285.8,3285.3,2.13069]
[1736641516321,0.218,3285.7,3285.3,2.30013691]
[1736641516521,0.218,3285.6,3285.3,2.30013691]
[1736641517455,0.218,3285.7,3285.5,0.7838]
[1736641517650,0.218,3285.7,3285.6,0.16913295]
[1736641518962,1.0218,3285.7,3285.6,0.16913295]
[1736641519252,3.55968601,3285.7,3284.9,2.13095]
[1736641519452,3.55968601,3285.7,3285.0,0.16911371]
[1736641519644,4.12869261,3285.7,3285.0,0.16911371]
[1736641520245,4.12869261,3285.7,3284.7,5.92276]
[1736641520432,0.55,3285.6,3284.8,0.16925805]
[1736641520952,0.55,3285.6,3284.8,0.19969759]
[1736641521161,0.55,3285.6,3284.9,2.13092]
[1736641521529,0.55,3285.6,3285.0,0.16911371]
[1736641522432,0.8289,3285.5,3285.1,0.16904155]
[1736641522645,0.8289,3285.5,3284.7,2.92277]
[1736641522857,0.8289,3285.5,3284.8,0.16925805]
[1736641524444,1.0469,3285.7,3284.8,0.16925805]
[1736641524754,0.218,3285.6,3285.0,0.7917]
[1736641524920,0.218,3285.7,3285.1,0.03043655]
[1736641525122,0.218,3285.7,3285.1,0.1996421]
[1736641525758,0.218,3285.7,3285.3,2.13069]
[1736641525960,0.218,3285.7,3285.3,2.36372321]
[1736641526258,0.218,3285.6,3285.4,0.1689891]
[1736641526840,0.8289,3285.9,3285.4,0.1689891]
[1736641526841,0.218,3285.8,3285.4,2.2995691]
[1736641527433,0.218,3285.8,3285.4,0.1689891]
[1736641527842,0.218,3285.8,3285.2,2.13074]
[1736641528035,0.218,3285.8,3285.3,0.16889724]
[1736641529107,0.218,3285.8,3285.3,0.19933364]
[1736641529228,0.8289,3285.9,3285.6,2.13047]
[1736641529429,0.218,3285.8,3285.7,0.168653]
[1736641532835,5.123,3286.4,3285.7,0.168653]
[1736641532836,0.55,3286.4,3285.7,0.168653]
[1736641533040,0.8289,3286.5,3285.8,0.03043213]
[1736641533235,2.53788601,3286.8,3285.8,0.03043213]
[1736641533236,0.8289,3286.8,3286.1,2.13012]
[1736641533472,0.219,3286.4,3286.2,0.16813283]
[1736641533783,0.219,3286.5,3286.2,2.29823283]
[1736641534255,0.8289,3286.8,3286.3,2.13004]
[1736641534454,0.8289,3286.8,3286.4,0.16788227]
[1736641534455,0.219,3286.7,3286.4,0.16788227]
[1736641535655,0.219,3286.7,3286.1,3.68871692]
[1736641535985,0.219,3286.7,3286.2,0.16795116]
[1736641536466,0.1617374,3286.7,3286.2,0.16795116]
[1736641536964,0.1617374,3286.7,3286.2,0.51335195]
[1736641537281,0.1617374,3286.7,3286.2,2.64345195]
[1736641539348,0.1617374,3286.7,3286.2,0.51335195]
[1736641539879,0.1617374,3286.7,3286.2,0.16795116]
[1736641539880,2.2915374,3286.7,3286.2,0.16795116]
[1736641540085,2.2915374,3286.7,3285.9,6.1374]
[1736641540284,2.2915374,3286.7,3286.3,0.16744929]
[1736641540456,2.2915374,3286.7,3285.9,6.1374]
[1736641540665,2.2915374,3286.7,3286.0,0.16766563]
[1736641546109,0.1617374,3286.7,3286.0,0.16766563]
[1736641548296,0.55,3286.4,3286.0,0.16766563]
[1736641549413,0.7928,3286.3,3286.0,0.16766563]
[1736641549610,1.3428,3286.1,3285.3,7.50068]
[1736641549813,0.55,3286.0,3285.3,5.37]
[1736641549975,0.219,3285.9,3285.4,0.16823133]
[1736641550175,0.219,3285.9,3285.4,2.29886133]
[1736641550990,0.219,3285.9,3285.4,0.16823133]
[1736641553614,0.7928,3285.8,3285.4,0.16823133]
[1736641554707,0.7928,3285.8,3285.1,2.13082]
[1736641554906,0.7928,3285.8,3285.5,0.16859783]
[1736641555215,0.55,3285.7,3284.7,5.37]
[1736641555426,0.8326,3285.2,3284.8,0.16910293]
[1736641555632,0.219,3285.1,3284.8,0.16910293]
[1736641560434,0.216,3285.1,3285.0,2.13089]
[1736641560636,0.216,3285.1,3285.0,0.47872632]
[1736641560800,3.34858601,3286.0,3285.1,0.7578]
[1736641560801,0.216,3285.5,3285.1,0.7578]
[1736641560993,0.216,3285.5,3285.1,2.88861]
[1736641561255,0.216,3285.5,3285.2,0.16975852]
[1736641562298,0.8107,3285.4,3285.2,0.16975852]
[1736641562499,0.55,3285.3,3285.2,0.16975852]
[1736641562706,0.55,3285.3,3284.7,5.37]
[1736641562901,0.55,3285.3,3285.2,0.16959446]
[1736641563105,1.1745166,3285.3,3284.7,5.37]
[1736641563313,0.55,3285.3,3285.2,0.16956786]
[1736641563505,0.55,3285.3,3284.7,5.37]
[1736641563706,0.55,3285.3,3285.2,0.16956786]
[1736641564209,0.55,3285.3,3284.5,2.1312]
[1736641564517,0.55,3285.3,3284.6,0.17000087]
[1736641565151,2.53788601,3285.1,3284.6,0.17000087]
[1736641565305,0.55,3285.0,3284.6,0.17000087]
[1736641565639,1.3607,3285.0,3284.7,0.17001293]
[1736641565839,1.3607,3285.0,3284.4,0.7578]
[1736641566066,1.3607,3285.0,3284.5,0.17015729]